Workbook

Sheet 1д
U1: Утверждаю: __________ _____________________ ______________________
Q2: 10,5 час.
A3: Меню-раскладка на " 18 " марта 2024 г.
B5: Наименование рецептов и блюд | C5: выход гр | D5: Хлеб пшеничный | E5: Масло сливочное | F5: Крупа манная | G5: Молоко | H5: Сахар | I5: Соль | J5: Какао | K5: Фрукты | L5: Морковь | M5: Масло растительное | N5: Картофель | O5: Зел горошек конс | P5: Лук | Q5: Крупа гречневая | R5: Макаронные изделия | S5: Сметана | T5: Мука | U5: Котлеты говяжьи п/ф | V5: Суповой набор | W5: Сухофрукты | X5: Сок фруктовый | Y5: Печенье | Z5: Крупа ячневая | AA5: Мука | AB5: Яйца | AC5: Дрожжи | AD5: Повидло | AE5: Чай
B6: 1 Завтрак
B7: Бутерброд с маслом | C7: 40/5 | D7: 40 | E7: 5
B8: Каша манная мол с маслом | C8: 200/5 | E8: 5 | F8: 30.8 | G8: 108 | H8: 5 | I8: 0.3
B9: Какао с молоком | C9: 180 | G9: 90 | H9: 9 | J9: 2.16
B10: II завтрак
B11: Сок фруктовый | C11: 200 | X11: 200
B12: Печенье | C12: 20 | Y12: 20
B13: Обед
B14: Салат картофельный с зеленым горошком | C14: 60 | I14: 0.15 | M14: 3.6 | N14: 46.2 | O14: 24 | P14: 9
B15: Суп картофельный с крупой (гречка) | C15: 200 | I15: 1.2 | L15: 10 | M15: 3 | N15: 80 | P15: 9.6 | Q15: 8 | V15: 20
B16: Макароны отварные со сметанным соусом | C16: 120/30 | E16: 5.55 | I16: 1.5 | R16: 50 | S16: 15 | T16: 0.75
B17: Котлеты говяжьи | C17: 70 | M17: 1.8 | U17: 1
B18: Компот из сухофруктов | C18: 180 | H18: 9 | W18: 18
B19: Хлеб пшеничный | C19: 50 | D19: 50
B20: Уплотненный полдник
B21: Каша ячнев мол с маслом | C21: 200/5 | E21: 5 | G21: 100 | H21: 5 | I21: 0.3 | Z21: 40
B22: Оладьи с повидлом | C22: 60/5 | G22: 34 | H22: 1.2 | I22: 0.6 | M22: 3.6 | AA22: 34 | AB22: 1.84 | AC22: 1 | AD22: 5
B23: Чай с сахаром | C23: 180/10 | H23: 10 | AE23: 0.6
B24: Фрукты свежие | C24: 100 | K24: 100
B25: Итого: | C25: гр | D25: =SUM(D6:D24) -> 90.00 | E25: =SUM(E6:E24) -> 20.55 | F25: 30.80 | G25: =SUM(G6:G24) -> 332.00 | H25: 39.20 | I25: 4.05 | J25: 2.16 | K25: =SUM(K6:K24) -> 100.00 | L25: 10.00 | M25: 12.00 | N25: 126.20 | O25: 24.00 | P25: 18.60 | Q25: 8.00 | R25: 50.00 | S25: 15.00 | T25: 0.75 | U25: 1.00 | V25: 20.00 | W25: 18.00 | X25: 200.00 | Y25: 20.00 | Z25: 40.00 | AA25: 34.00 | AB25: 1.84 | AC25: 1.00 | AD25: 5.00 | AE25: =SUM(AE6:AE24) -> 0.60
B26: Количество детей: | C26: 6
B27: Всего: | C27: кг | D27: =D25*C26/1000 -> 0.540 | E27: =E25*C26/1000 -> 0.123 | F27: =F25*C26/1000 -> 0.185 | G27: =G25*C26/1000 -> 1.992 | H27: =H25*C26/1000 -> 0.235 | I27: =I25*C26/1000 -> 0.024 | J27: =J25*C26/1000 -> 0.013 | K27: =K25*C26/1000 -> 0.600 | L27: =L25*C26/1000 -> 0.060 | M27: =M25*C26/1000 -> 0.072 | N27: =N25*C26/1000 -> 0.757 | O27: =O25*C26/1000 -> 0.144 | P27: =P25*C26/1000 -> 0.112 | Q27: =Q25*C26/1000 -> 0.048 | R27: =R25*C26/1000 -> 0.300 | S27: =S25*C26/1000 -> 0.090 | T27: =T25*C26/1000 -> 0.005 | U27: =U25*C26 -> 6.000 | V27: =V25*C26/1000 -> 0.120 | W27: =W25*C26/1000 -> 0.108 | X27: =X25*C26/1000 -> 1.200 | Y27: =Y25*C26/1000 -> 0.120 | Z27: =Z25*C26/1000 -> 0.240 | AA27: =AA25*C26/1000 -> 0.204 | AB27: =AB25*C26/1000 -> 0.011 | AC27: =AC25*C26/1000 -> 0.006 | AD27: =AD25*C26/1000 -> 0.030 | AE27: =AE25*C26/1000 -> 0.004
B29: Составил _________________

Sheet 2д
W1: Утверждаю: __________ _____________________ ______________________
U2: 10,5 час.
A3: Меню-раскладка на " 19 " марта 2024 г.
B5: Наименование рецептов и блюд | C5: выход гр | D5: Хлеб пшеничный | E5: Масло сливочное | F5: Сыр | G5: Крупа гречневая | H5: Молоко | I5: Сахар | J5: Соль | K5: Чай | L5: Фрукты | M5: Морковь | N5: Масло растительное | O5: Макаронные изделия | P5: Дрожжи | Q5: Суповой набор | R5: Свекла | S5: Картофель | T5: Яйца | U5: Лук | V5: Томатная паста | W5: Куриная грудка | X5: или Курица | Y5: Мука | Z5: Сухофрукты | AA5: Йогурт питьевой | AB5: Курага
B6: 1 Завтрак
B7: Бутерброд с маслом и сыром | C7: 25/5/10 | D7: 25 | E7: 5 | F7: 10.6
B8: Каша гречневая молочная с маслом | C8: 200/5 | E8: 5 | G8: 40 | H8: 100 | I8: 5 | J8: 0.3
B9: Чай с сахаром | C9: 180/10 | I9: 10 | K9: 0.6
B10: II завтрак
B11: Йогурт питьевой | C11: 95 | AA11: 101.18
B12: Обед
B13: Икра морковная | C13: 60 | I13: 0.72 | J13: 0.15 | M13: 48 | N13: 3 | U13: 12.6 | V13: 13.8
B14: Свекольник | C14: 200 | I14: 2 | J14: 1.2 | M14: 10 | N14: 4 | Q14: 20 | R14: 64 | S14: 46 | U14: 10.8 | V14: 2.6
B15: Птица туш. с овощами | C15: 190 | J15: 0.8 | M15: 28 | N15: 2.33 | S15: 144.67 | U15: 14 | V15: 9.33 | W15: 65 | X15: 114.38 | Y15: 1.75
B16: Компот из сухофруктов | C16: 180 | I16: 9 | Z16: 18
B17: Хлеб пшеничный | C17: 50 | D17: 50
B18: Уплотненный полдник
B19: Суп молочный с макар. изделиями | C19: 200 | E19: 4 | H19: 140 | I19: 2 | J19: 1.2 | O19: 16
B20: Чай с курагой | C20: 180/10/10 | I20: 10 | K20: 0.6 | AB20: 10
B21: Булочка домашняя | C21: 50 | E21: 7.5 | I21: 7.17 | J21: 0.33 | N21: 0.42 | P21: 0.83 | T21: 0.42 | Y21: 32.09
B22: Хлеб пшеничный | C22: 40 | D22: 40
B23: Фрукты свежие | C23: 100 | L23: 100
B24: Итого: | C24: гр | D24: =SUM(D6:D23) -> 115.00 | E24: 21.50 | F24: 10.60 | G24: 40.00 | H24: 240.00 | I24: 45.89 | J24: 3.98 | K24: 1.20 | L24: 100.00 | M24: 86.00 | N24: 9.75 | O24: 16.00 | P24: 0.83 | Q24: 20.00 | R24: 64.00 | S24: 190.67 | T24: 0.42 | U24: 37.40 | V24: 25.73 | W24: 65.00 | X24: 114.38 | Y24: 33.84 | Z24: 18.00 | AA24: 101.18 | AB24: 10.00
B25: Количество детей: | C25: 6
B26: Всего: | C26: кг | D26: =D24*C25/1000 -> 0.690 | E26: =E24*C25/1000 -> 0.129 | F26: =F24*C25/1000 -> 0.064 | G26: =G24*C25/1000 -> 0.240 | H26: =H24*C25/1000 -> 1.440 | I26: =I24*C25/1000 -> 0.275 | J26: =J24*C25/1000 -> 0.024 | K26: =K24*C25/1000 -> 0.007 | L26: =L24*C25/1000 -> 0.600 | M26: =M24*C25/1000 -> 0.516 | N26: =N24*C25/1000 -> 0.059 | O26: =O24*C25/1000 -> 0.096 | P26: =P24*C25/1000 -> 0.005 | Q26: =Q24*C25/1000 -> 0.120 | R26: =R24*C25/1000 -> 0.384 | S26: =S24*C25/1000 -> 1.144 | T26: =T24*C25/1000 -> 0.003 | U26: =U24*C25/1000 -> 0.224 | V26: =V24*C25/1000 -> 0.154 | W26: =W24*C25/1000 -> 0.390 | X26: =X24*C25/1000 -> 0.686 | Y26: =Y24*C25/1000 -> 0.203 | Z26: =Z24*C25/1000 -> 0.108 | AA26: =AA24*C25/1000 -> 0.607 | AB26: =AB24*C25/1000 -> 0.060
B28: Составил _________________

Sheet 3д
X1: Утверждаю: __________ _____________________ ______________________
V2: 10,5 час.
A3: Меню-раскладка на " 20 " марта 2024 г.
B5: Наименование рецептов и блюд | C5: выход гр | D5: Хлеб пшеничный | E5: Творог | F5: Молоко | G5: Сахар | H5: Соль | I5: Масло слив. | J5: Масло раст. | K5: Чай (гр) | L5: Котлеты говяжьи п/ф | M5: Вафли | N5: Картофель | O5: Морковь | P5: Лук | Q5: Свекла | R5: Огурцы соленые | S5: Суповой набор | T5: Сухофрукты | U5: Сметана | V5: Горох | W5: Яйцо | X5: Пшено | Y5: Мука | Z5: Рис | AA5: Крупа гречневая
B6: 1 Завтрак
B7: Бутерброд с маслом | C7: 40/5 | D7: 40 | I7: 5
B8: Каша Дружба молочная | C8: 200/5 | F8: 102 | G8: 5 | H8: 0.3 | I8: 5 | X8: 11 | Z8: 15
B9: Чай с сахаром | C9: 180/10 | G9: 10 | K9: 0.6
B10: II завтрак
B11: Молоко кипяченое | C11: 150 | F11: 158.25
B12: Обед
B13: Винегрет овощной | C13: 60 | H13: 0.15 | J13: 3.6 | N13: 22.2 | O13: 9 | P13: 12 | Q13: 15 | R13: 13.2
B14: Суп картофельный с бобовыми | C14: 200 | H14: 1.2 | I14: 4 | N14: 66.6 | O14: 10 | P14: 9.6 | S14: 20 | V14: 16.2
B15: Каша гречневая рассыпчатая с соусом | C15: 150/20 | H15: 0.7 | I15: 6.5 | U15: 10 | Y15: 0.5 | AA15: 71.4
B16: Котлеты говяжьи | C16: 70 | J16: 1.8 | L16: 1
B17: Хлеб пшеничный | C17: 50 | D17: 50
B18: Компот из сухофруктов | C18: 180 | G18: 9 | T18: 18
B19: Уплотненный полдник
B20: Запеканка из творога с морковью с соусом молочным | C20: 100/30 | E20: 23.85 | F20: 22.5 | G20: =3.85+3 -> 6.85 | H20: 0.38 | I20: =1.54+1.2 -> 2.74 | J20: 1.54 | O20: 103.08 | W20: 17.7 | Y20: 1.2
B21: Вафли | C21: 20 | M21: 20
B22: Чай с сахаром | C22: 180/10 | G22: 10 | K22: 0.6
B23: Итого на одного ребенка: | C23: гр | D23: =SUM(D7:D22) -> 90.00 | E23: =SUM(E7:E22) -> 23.85 | F23: 282.75 | G23: =SUM(G7:G22) -> 40.85 | H23: 2.73 | I23: 23.24 | J23: 6.94 | K23: 1.20 | L23: 1.00 | M23: 20.00 | N23: 88.80 | O23: 122.08 | P23: 21.60 | Q23: 15.00 | R23: 13.20 | S23: 20.00 | T23: 18.00 | U23: 10.00 | V23: 16.20 | W23: 17.70 | X23: 11.00 | Y23: 1.70 | Z23: 15.00 | AA23: 71.40
B24: Количество детей | C24: 6
B25: Всего: | C25: кг | D25: =D23*C24/1000 -> 0.540 | E25: =E23*C24/1000 -> 0.143 | F25: =F23*C24/1000 -> 1.697 | G25: =G23*C24/1000 -> 0.245 | H25: =H23*C24/1000 -> 0.016 | I25: =I23*C24/1000 -> 0.139 | J25: =J23*C24/1000 -> 0.042 | K25: =K23*C24/1000 -> 0.007 | L25: =L23*C24 -> 6.000 | M25: =M23*C24/1000 -> 0.120 | N25: =N23*C24/1000 -> 0.533 | O25: =O23*C24/1000 -> 0.732 | P25: =P23*C24/1000 -> 0.130 | Q25: =Q23*C24/1000 -> 0.090 | R25: =R23*C24/1000 -> 0.079 | S25: =S23*C24/1000 -> 0.120 | T25: =T23*C24/1000 -> 0.108 | U25: =U23*C24/1000 -> 0.060 | V25: =V23*C24/1000 -> 0.097 | W25: =W23*C24/1000 -> 0.106 | X25: =X23*C24/1000 -> 0.066 | Y25: =Y23*C24/1000 -> 0.010 | Z25: =Z23*C24/1000 -> 0.090 | AA25: =AA23*C24/1000 -> 0.428
B27: Составил _________________

Sheet 4д
Y1: Утверждаю: __________ _____________________ ______________________
W2: 10,5 час.
A3: Меню-раскладка на " 21 " марта 2024 г.
B4: Наименование рецептов и блюд | C4: выход гр | D4: Хлеб пшеничный | E4: Кофейный напиток | F4: Зел горошек конс | G4: Молоко | H4: Сыр | I4: Сахар | J4: Соль | K4: Масло слив. | L4: Масло раст. | M4: Куриная грудка | N4: или Курица | O4: Чай (гр) | P4: Кисломолочный продукт | Q4: Картофель | R4: Суповой набор | S4: Морковь | T4: Печенье | U4: Фрукты свежие | V4: Лук | W4: Сухофрукты | X4: Яйцо | Y4: Пшеничн. кр. | Z4: Крупа рисовая | AA4: Крупа перловая | AB4: Огурцы соленые
B5: 1 Завтрак
B6: Бутерброд с маслом и сыром | C6: 25/5/10 | D6: 25 | H6: 10.6 | K6: 5
B7: Каша пшеничная мол.с маслом | C7: 200/5 | G7: 100 | I7: 5 | J7: 0.3 | K7: 5 | Y7: 40
B8: Кофейный напиток | C8: 180 | E8: 2.16 | G8: 90 | I8: 9
B9: II завтрак
B10: Кисломолочный продукт | C10: 150 | P10: 156
B11: Обед
B12: Салат картофельный с зеленым горошком | C12: 60 | F12: 24 | J12: 0.15 | L12: 3.6 | Q12: 46.2 | V12: 9
B13: Рассольник Ленинградский | C13: 200 | J13: 0.4 | L13: 4 | Q13: 80 | R13: 20 | S13: 10 | V13: 4.8 | AA13: 4 | AB13: 20
B14: Плов из мяса птицы | C14: 210 | J14: 0.95 | L14: 8.41 | M14: 85.8 | N14: 172.86 | S14: 18.92 | V14: 23.12 | Z14: 47.3
B15: Компот из сухофруктов | C15: 180 | I15: 9 | W15: 18
B16: Хлеб пшеничный | C16: 50 | D16: 50
B17: Уплотненный полдник
B18: Омлет натуральный паровой | C18: 105 | G18: 40 | J18: 0.5 | K18: 5 | L18: 1.67 | X18: 76.67
B19: Чай с сахаром | C19: 180/10 | I19: 10 | O19: 0.6
B20: Печенье | C20: 20 | T20: 20
B21: Свежие фрукты | C21: 100 | U21: 100
B22: Хлеб пшеничный | C22: 40 | D22: 40
B23: Итого на одного ребенка: | C23: гр | D23: =SUM(D6:D22) -> 115.00 | E23: 2.16 | F23: 24.00 | G23: 230.00 | H23: 10.60 | I23: 33.00 | J23: 2.30 | K23: 15.00 | L23: 17.68 | M23: 85.80 | N23: 172.86 | O23: 0.60 | P23: 156.00 | Q23: 126.20 | R23: 20.00 | S23: 28.92 | T23: 20.00 | U23: 100.00 | V23: 36.92 | W23: 18.00 | X23: 76.67 | Y23: 40.00 | Z23: 47.30 | AA23: 4.00 | AB23: 20.00
B24: Количество детей: | C24: 6
B25: Всего: | C25: кг | D25: =D23*C24/1000 -> 0.690 | E25: =E23*C24/1000 -> 0.013 | F25: =F23*C24/1000 -> 0.144 | G25: =G23*C24/1000 -> 1.380 | H25: =H23*C24/1000 -> 0.064 | I25: =I23*C24/1000 -> 0.198 | J25: =J23*C24/1000 -> 0.014 | K25: =K23*C24/1000 -> 0.090 | L25: =L23*C24/1000 -> 0.106 | M25: =M23*C24/1000 -> 0.515 | N25: =N23*C24/1000 -> 1.037 | O25: =O23*C24/1000 -> 0.004 | P25: =P23*C24/1000 -> 0.936 | Q25: =Q23*C24/1000 -> 0.757 | R25: =R23*C24/1000 -> 0.120 | S25: =S23*C24/1000 -> 0.174 | T25: =T23*C24/1000 -> 0.120 | U25: =U23*C24/1000 -> 0.600 | V25: =V23*C24/1000 -> 0.222 | W25: =W23*C24/1000 -> 0.108 | X25: =X23*C24/1000 -> 0.460 | Y25: =Y23*C24/1000 -> 0.240 | Z25: =Z23*C24/1000 -> 0.284 | AA25: =AA23*C24/1000 -> 0.024 | AB25: =AB23*C24/1000 -> 0.120
B27: Составил _________________

Sheet 5д
T1: Утверждаю: __________ _____________________ ______________________
P2: 10,5 час.
A3: Меню-раскладка на " 22 " марта 2024 г.
B5: Наименование рецептов и блюд | C5: выход гр | D5: Хлеб пшеничный | E5: Молоко | F5: Сахар | G5: Соль | H5: Масло слив. | I5: Масло раст. | J5: Чай | K5: Вафли | L5: Лимон | M5: Картофель | N5: Свекла | O5: Морковь | P5: Лук | Q5: Курага | R5: Фрукты свежие | S5: Сухофрукты | T5: Котлеты рыбные п/ф | U5: Крупа рисовая | V5: Суповой набор | W5: Томатная паста | X5: Геркулес
B6: 1 Завтрак
B7: Бутерброд с маслом | C7: 40/5 | D7: 40 | H7: 5
B8: Каша геркулесов. молоч.с маслом | C8: 200/5 | E8: 118 | F8: 5 | G8: 0.3 | H8: 5 | X8: 30.8
B9: Чай с курагой | C9: 180/10/10 | F9: 10 | J9: 0.6 | Q9: 10
B10: II завтрак
B11: Свежие фрукты | C11: 100 | R11: 100
B12: Вафли | C12: 20 | K12: 20
B13: Обед
B14: Салат из свеклы отварной | C14: 60 | G14: 0.15 | I14: 3.6 | N14: 72
B15: Суп картофельный | C15: 200 | G15: 1.2 | I15: 3 | M15: 120 | O15: 10 | P15: 9.6 | V15: 20 | W15: 2
B16: Котлеты рыбные запеченные | C16: 70 | I16: 2 | T16: 1
B17: Пюре картофельное | C17: 150 | E17: 22.5 | G17: 0.6 | H17: 6.75 | M17: 174
B18: Компот из сухофруктов | C18: 180 | F18: 9 | S18: 18
B19: Хлеб пшеничный | C19: 50 | D19: 50
B20: Уплотненный полдник
B21: Каша рисовая молоч. с маслом | C21: 200/5 | E21: 104 | F21: 5 | G21: 0.3 | H21: 5 | U21: 30.8
B22: Хлеб пшеничный | C22: 40 | D22: 40
B23: Свежие фрукты | C23: 100 | R23: 100
B24: Чай с лимоном | C24: 180/10/7 | F24: 10 | J24: 0.6 | L24: 8
B25: Итого на одного ребенка: | C25: гр | D25: =SUM(D7:D24) -> 130.00 | E25: =SUM(E7:E24) -> 244.50 | F25: =SUM(F7:F24) -> 39.00 | G25: 2.55 | H25: 21.75 | I25: 8.60 | J25: =SUM(J7:J24) -> 1.20 | K25: 20.00 | L25: 8.00 | M25: =SUM(M7:M24) -> 294.00 | N25: 72.00 | O25: 10.00 | P25: 9.60 | Q25: 10.00 | R25: 200.00 | S25: 18.00 | T25: =SUM(T7:T24) -> 1.00 | U25: 30.80 | V25: 20.00 | W25: 2.00 | X25: 30.80
B26: Количество детей | C26: 6
B27: Всего: | C27: кг | D27: =D25*C26/1000 -> 0.780 | E27: =E25*C26/1000 -> 1.467 | F27: =F25*C26/1000 -> 0.234 | G27: =G25*C26/1000 -> 0.015 | H27: =H25*C26/1000 -> 0.131 | I27: =I25*C26/1000 -> 0.052 | J27: =J25*C26/1000 -> 0.007 | K27: =K25*C26/1000 -> 0.120 | L27: =L25*C26/1000 -> 0.048 | M27: =M25*C26/1000 -> 1.764 | N27: =N25*C26 -> 432.000 | O27: =O25*C26/1000 -> 0.060 | P27: =P25*C26/1000 -> 0.058 | Q27: =Q25*C26/1000 -> 0.060 | R27: =R25*C26/1000 -> 1.200 | S27: =S25*C26/1000 -> 0.108 | T27: =T25*C26 -> 6.000 | U27: =U25*C26/1000 -> 0.185 | V27: =V25*C26/1000 -> 0.120 | W27: =W25*C26/1000 -> 0.012 | X27: =X25*C26/1000 -> 0.185
B29: Составил _________________

Sheet 6д
W1: Утверждаю: __________ _____________________ ______________________
U2: 10,5 час.
A3: Меню-раскладка на " 25 " марта 2024 г.
B5: Наименование рецептов и блюд | C5: выход гр | D5: Хлеб пшеничный | E5: Куриная грудка | F5: или Курица | G5: Молоко | H5: Сахар | I5: Соль | J5: Масло слив. | K5: Масло раст. | L5: Чай | M5: Биточки куриные п/ф | N5: Картофель | O5: Зел горошек конс | P5: Морковь | Q5: Лук | R5: Горох | S5: Суповой набор | T5: Курага | U5: Печенье | V5: Мука | W5: Фрукты | X5: Пшено | Y5: Сок | Z5: Рис | AA5: Сухофрукты | AB5: Томатная паста
B6: 1 Завтрак
B7: Бутерброд с маслом | C7: 40/5 | D7: 40 | J7: 5
B8: Каша пшенная молоч.с маслом | C8: 200/5 | G8: 100 | H8: 5 | I8: 0.3 | J8: 5 | X8: 40
B9: Чай с сахаром | C9: 180/10 | H9: 10 | L9: 0.6
B10: II завтрак
B11: Сок фруктовый | C11: 200 | Y11: 200
B12: Печенье | C12: 20 | U12: 20
B13: Обед
B14: Салат картофельный с зеленым горошком | C14: 60 | I14: 0.15 | K14: 3.6 | N14: 46.2 | O14: 24 | Q14: 9
B15: Суп картоф. с бобовыми | C15: 200 | I15: 1.2 | J15: 4 | N15: 66.6 | P15: 10 | Q15: 9.6 | R15: 16.2 | S15: 20
B16: Плов из мяса птицы | C16: 210 | E16: 85.8 | F16: 172.86 | I16: 0.95 | K16: 8.41 | P16: 18.92 | Q16: 23.12 | Z16: 47.3
B17: Компот из сухофруктов | C17: 180 | H17: 9 | AA17: 18
B18: Хлеб пшеничный | C18: 50 | D18: 50
B19: Уплотненный полдник
B20: Рагу овощное с соусом | C20: 150/45 | H20: 0.81 | I20: 0.98 | J20: 2.25 | K20: =4.41+2.65 -> 7.06 | N20: 196.76 | P20: 65.3 | Q20: 35.3 | V20: 2.25 | AB20: 6.75
B21: Биточки куриные | C21: 70 | K21: 2 | M21: 1
B22: Хлеб пшеничный | C22: 40 | D22: 40
B23: Чай с курагой | C23: 180/10/10 | H23: 10 | L23: 0.6 | T23: 10
B24: Фрукты свежие | C24: 100 | W24: 100
B25: Итого на одного ребенка: | C25: гр | D25: =SUM(D7:D24) -> 130.00 | E25: =SUM(E7:E24) -> 85.80 | F25: 172.86 | G25: 100.00 | H25: 34.81 | I25: 3.58 | J25: 16.25 | K25: 21.07 | L25: 1.20 | M25: 1.00 | N25: 309.56 | O25: 24.00 | P25: 94.22 | Q25: 77.02 | R25: 16.20 | S25: 20.00 | T25: 10.00 | U25: 20.00 | V25: 2.25 | W25: 100.00 | X25: 40.00 | Y25: 200.00 | Z25: 47.30 | AA25: 18.00 | AB25: 6.75
B26: Количество детей: | C26: 6
B27: Всего: | C27: кг | D27: =D25*C26/1000 -> 0.780 | E27: =E25*C26/1000 -> 0.515 | F27: =F25*C26/1000 -> 1.037 | G27: =G25*C26/1000 -> 0.600 | H27: =H25*C26/1000 -> 0.209 | I27: =I25*C26/1000 -> 0.021 | J27: =J25*C26/1000 -> 0.098 | K27: =K25*C26/1000 -> 0.126 | L27: =L25*C26/1000 -> 0.007 | M27: =M25*C26 -> 6.000 | N27: =N25*C26/1000 -> 1.857 | O27: =O25*C26/1000 -> 0.144 | P27: =P25*C26/1000 -> 0.565 | Q27: =Q25*C26/1000 -> 0.462 | R27: =R25*C26/1000 -> 0.097 | S27: =S25*C26/1000 -> 0.120 | T27: =T25*C26/1000 -> 0.060 | U27: =U25*C26/1000 -> 0.120 | V27: =V25*C26/1000 -> 0.014 | W27: =W25*C26/1000 -> 0.600 | X27: =X25*C26/1000 -> 0.240 | Y27: =Y25*C26/1000 -> 1.200 | Z27: =Z25*C26/1000 -> 0.284 | AA27: =AA25*C26/1000 -> 0.108 | AB27: =AB25*C26/1000 -> 0.041
B29: Составил _________________

Sheet 7д
X1: Утверждаю: __________ _____________________ ______________________
Q2: 10,5 час.
A3: Меню-раскладка на " 26 " марта 2024 г.
B4: Наименование рецептов и блюд | C4: выход гр | D4: Хлеб пшеничный | E4: Сыр | F4: Молоко | G4: Сахар | H4: Соль | I4: Масло слив. | J4: Масло раст. | K4: Чай | L4: Какао | M4: Свекла | N4: Фрукты | O4: Крупа перловая | P4: Картофель | Q4: Морковь | R4: Лук | S4: Томатная паста | T4: Огурцы соленые | U4: Суповой набор | V4: Сметана | W4: Мука | X4: Яйцо | Y4: Макаронные изделия | Z4: Крупа пшеничная | AA4: Сухофрукты | AB4: Кисломолочный продукт | AC4: Дрожжи | AD4: Повидло | AE4: Куриная грудка | AF4: Печенье
B5: 1 Завтрак
B6: Бутерброд с маслом и сыром | C6: 25/5/10 | D6: 25 | E6: 10.6 | I6: 5
B7: Какао с молоком | C7: 180 | F7: 90 | G7: 9 | L7: 2.16
B8: Суп молочный с макаронами | C8: 200 | F8: 140 | G8: 2 | H8: 1.2 | I8: 4 | Y8: 16
B9: II завтрак
B10: Кисломолочный продукт | C10: 150 | AB10: 156
B11: Печенье | C11: 20 | AF11: 20
B12: Обед
B13: Салат из свеклы отварной | C13: 60 | H13: 0.15 | J13: 3.6 | M13: 72
B14: Рассольник | C14: 200 | H14: 1.2 | J14: 4 | O14: 4 | P14: 80 | Q14: 10 | R14: 4.8 | T14: 20 | U14: 20
B15: Пюре картофельное | C15: 150 | F15: 22.5 | H15: 0.6 | I15: 6.75 | P15: 174
B16: Птица в соусе в томате | C16: 80 | H16: 0.4 | I16: 4.5 | Q16: 4.65 | R16: 4.65 | S16: 4.65 | V16: 2.5 | W16: 0.95 | AE16: 65
B17: Хлеб пшеничный | C17: 50 | D17: 50
B18: Компот из сухофруктов | C18: 180 | G18: 9 | AA18: 18
B19: Уплотненный полдник
B20: Каша пшенич.молоч.с маслом | C20: 200/5 | F20: 100 | G20: 5 | H20: 0.3 | I20: 5 | Z20: 40
B21: Чай с сахаром | C21: 180/10 | G21: 10 | K21: 0.6
B22: Свежие фрукты | C22: 100 | N22: 100
B23: Оладьи с повидлом | C23: 60/5 | F23: 34 | G23: 1.2 | H23: 0.6 | J23: 3.6 | W23: 34 | X23: 1.84 | AC23: 1 | AD23: 5
B24: Итого на одного ребенка: | C24: гр | D24: =SUM(D6:D23) -> 75.00 | E24: 10.60 | F24: 386.50 | G24: 36.20 | H24: 4.45 | I24: 25.25 | J24: 11.20 | K24: 0.60 | L24: 2.16 | M24: 72.00 | N24: 100.00 | O24: 4.00 | P24: 254.00 | Q24: 14.65 | R24: 9.45 | S24: 4.65 | T24: 20.00 | U24: 20.00 | V24: 2.50 | W24: 34.95 | X24: 1.84 | Y24: 16.00 | Z24: 40.00 | AA24: 18.00 | AB24: 156.00 | AC24: 1.00 | AD24: 5.00 | AE24: 65.00 | AF24: 20.00
B25: Количество детей: | C25: 6
B26: Всего: | C26: кг | D26: =D24*C25/1000 -> 0.450 | E26: =E24*C25/1000 -> 0.064 | F26: =F24*C25/1000 -> 2.319 | G26: =G24*C25/1000 -> 0.217 | H26: =H24*C25/1000 -> 0.027 | I26: =I24*C25/1000 -> 0.152 | J26: =J24*C25/1000 -> 0.067 | K26: =K24*C25/1000 -> 0.004 | L26: =L24*C25/1000 -> 0.013 | M26: =M24*C25/1000 -> 0.432 | N26: =N24*C25/1000 -> 0.600 | O26: =O24*C25/1000 -> 0.024 | P26: =P24*C25/1000 -> 1.524 | Q26: =Q24*C25/1000 -> 0.088 | R26: =R24*C25/1000 -> 0.057 | S26: =S24*C25/1000 -> 0.028 | T26: =T24*C25/1000 -> 0.120 | U26: =U24*C25/1000 -> 0.120 | V26: =V24*C25/1000 -> 0.015 | W26: =W24*C25/1000 -> 0.210 | X26: =X24*C25/1000 -> 0.011 | Y26: =Y24*C25/1000 -> 0.096 | Z26: =Z24*C25/1000 -> 0.240 | AA26: =AA24*C25/1000 -> 0.108 | AB26: =AB24*C25/1000 -> 0.936 | AC26: =AC24*C25/1000 -> 0.006 | AD26: =AD24*C25/1000 -> 0.030 | AE26: =AE24*C25/1000 -> 0.390 | AF26: =AF24*C25/1000 -> 0.120
B28: Составил _________________

Sheet 8д
W1: Утверждаю: __________ _____________________ ______________________
T2: 10,5 час.
A3: Меню-раскладка на " 27 " марта 2024 г.
B5: Наименование рецептов и блюд | C5: выход гр | D5: Хлеб пшеничный | E5: Крупа гречневая | F5: Молоко | G5: Сахар | H5: Соль | I5: Масло слив. | J5: Масло раст. | K5: Чай | L5: Крупа геркулесовая | M5: Свекла | N5: Томатная паста | O5: Картофель | P5: Морковь | Q5: Лук | R5: Фрукты свежие | S5: Макароны | T5: Дрожжи | U5: Яйца | V5: Суповой набор | W5: Сметана | X5: Тефтели говяжьи п/ф | Y5: Свекла | Z5: Сухофрукты | AA5: Мука | AB5: Печенье
B6: 1 Завтрак
B7: Бутерброд с маслом | C7: 40/5 | D7: 40 | I7: 5
B8: Чай с молоком | C8: 180/10 | F8: 45 | G8: 10 | K8: 0.6
B9: Каша геркулесовая с маслом | C9: 200/5 | F9: 118 | G9: 5 | H9: 0.3 | I9: 5 | L9: 30.8
B10: II завтрак
B11: Свежие фрукты | C11: 100 | R11: 100
B12: Печенье | C12: 20 | AB12: 20
B13: Обед
B14: Икра морковная | C14: 60 | G14: 0.72 | H14: 0.15 | J14: 3 | N14: 13.8 | P14: 48 | Q14: 12.6
B15: Свекольник | C15: 200 | G15: 2 | H15: 1.2 | J15: 4 | N15: 2.6 | O15: 46 | P15: 10 | Q15: 10.8 | V15: 20 | Y15: 64
B16: Макароны отварные с маслом | C16: 120/4 | H16: 1.2 | I16: 4 | S16: 50
B17: Тефтели говяжьи с соусом | C17: 80/50 | H17: 0.5 | I17: 1.25 | W17: 25 | X17: 1 | AA17: 1.25
B18: Хлеб пшеничный | C18: 50 | D18: 50
B19: Компот из сухофруктов | C19: 180 | G19: 9 | Z19: 18
B20: Уплотненный полдник
B21: Чай с сахаром | C21: 180/10 | G21: 10 | K21: 0.6
B22: Каша гречневая с маслом | C22: 150/5 | E22: 71.4 | H22: 0.375 | I22: 5
B23: Булочка домашняя | C23: 50 | G23: 7.17 | H23: 0.33 | I23: 7.5 | J23: 0.42 | T23: 0.83 | U23: 0.42 | AA23: 32.09
B24: Хлеб пшеничный | C24: 40 | D24: 40
B25: Итого на одного ребенка: | C25: гр | D25: =SUM(D6:D24) -> 130.00 | E25: =SUM(E6:E24) -> 71.40 | F25: =SUM(F6:F24) -> 163.00 | G25: 43.89 | H25: 4.06 | I25: 27.75 | J25: 7.42 | K25: 1.20 | L25: 30.80 | M25: 0.00 | N25: 16.40 | O25: 46.00 | P25: 58.00 | Q25: 23.40 | R25: 100.00 | S25: 50.00 | T25: 0.83 | U25: 0.42 | V25: 20.00 | W25: 25.00 | X25: 1.00 | Y25: 64.00 | Z25: 18.00 | AA25: 33.34 | AB25: 20.00
B26: Количество детей: | C26: 6
B27: Всего: | C27: кг | D27: =D25*C26/1000 -> 0.780 | E27: =E25*C26/1000 -> 0.428 | F27: =F25*C26/1000 -> 0.978 | G27: =G25*C26/1000 -> 0.263 | H27: =H25*C26/1000 -> 0.024 | I27: =I25*C26/1000 -> 0.167 | J27: =J25*C26/1000 -> 0.045 | K27: =K25*C26/1000 -> 0.007 | L27: =L25*C26/1000 -> 0.185 | M27: =M25*C26/1000 -> 0.000 | N27: =N25*C26/1000 -> 0.098 | O27: =O25*C26/1000 -> 0.276 | P27: =P25*C26/1000 -> 0.348 | Q27: =Q25*C26/1000 -> 0.140 | R27: =R25*C26/1000 -> 0.600 | S27: =S25*C26/1000 -> 0.300 | T27: =T25*C26/1000 -> 0.005 | U27: =U25*C26/1000 -> 0.003 | V27: =V25*C26/1000 -> 0.120 | W27: =W25*C26/1000 -> 0.150 | X27: =X25*C26 -> 6.000 | Y27: =Y25*C26/1000 -> 0.384 | Z27: =Z25*C26/1000 -> 0.108 | AA27: =AA25*C26/1000 -> 0.200 | AB27: =AB25*C26/1000 -> 0.120
B29: Составил _________________

Sheet 9д
U1: Утверждаю: __________ _____________________ ______________________
S2: 10,5 ч.
A3: Меню-раскладка на " 28 " марта 2024 г.
B5: Наименование рецептов и блюд | C5: выход гр | D5: Хлеб пшеничный | E5: Крупа ячневая | F5: Молоко | G5: Сахар | H5: Чай | I5: Соль | J5: Масло слив. | K5: Масло раст. | L5: Мука | M5: Сыр | N5: Кофейный напиток | O5: Горох | P5: Курага | Q5: Томатная паста | R5: Котлеты говяжьи п/ф | S5: Картофель | T5: Огурцы соленые | U5: Морковь | V5: Суповой набор | W5: Лук | X5: Куриная грудка | Y5: или Курица | Z5: Сухофрукты | AA5: Фрукты | AB5: Макаронные изделия
B6: 1 Завтрак
B7: Каша ячневая мол.с маслом | C7: 200/5 | E7: 40 | F7: 100 | G7: 5 | I7: 0.3 | J7: 5
B8: Кофейный напиток | C8: 180 | F8: 90 | G8: 9 | N8: 2.16
B9: Бутерброд с маслом и сыром | C9: 25/5/10 | D9: 25 | J9: 5 | M9: 10.6
B10: II завтрак
B11: Молоко кипяченое | C11: 150 | F11: 158.25
B12: Обед
B13: Огурцы соленые | C13: 60 | T13: 66.6
B14: Суп картоф.с макаронами | C14: 200 | I14: 1.2 | K14: 4 | Q14: 2 | S14: 53.4 | U14: 10 | V14: 20 | W14: 9.6 | AB14: 10
B15: Пюре гороховое | C15: 150 | I15: 0.75 | J15: 5 | O15: 75.75
B16: Котлеты говяжьи | C16: 70 | K16: 1.8 | R16: 1
B17: Компот из сухофруктов | C17: 180 | G17: 9 | Z17: 18
B18: Хлеб пшеничный | C18: 50 | D18: 50
B19: Уплотненный полдник
B20: Птица тушеная с овощами | C20: 190 | I20: 0.8 | K20: 2.33 | L20: 1.75 | Q20: 9.33 | S20: 144.67 | U20: 28 | W20: 14 | X20: 65 | Y20: 114.38
B21: Чай с курагой | C21: 180/10/10 | G21: 10 | H21: 0.6 | P21: 10
B22: Хлеб пшеничный | C22: 40 | D22: 40
B23: Свежие фрукты | C23: 100 | AA23: 100
B24: Итого: | C24: гр | D24: =SUM(D7:D23) -> 115.00 | E24: =SUM(E7:E23) -> 40.00 | F24: 348.25 | G24: 33.00 | H24: 0.60 | I24: 3.05 | J24: 15.00 | K24: 8.13 | L24: 1.75 | M24: 10.60 | N24: 2.16 | O24: 75.75 | P24: 10.00 | Q24: 11.33 | R24: 1.00 | S24: =SUM(S7:S23) -> 198.07 | T24: 66.60 | U24: 38.00 | V24: 20.00 | W24: 23.60 | X24: 65.00 | Y24: 114.38 | Z24: 18.00 | AA24: =SUM(AA7:AA23) -> 100.00 | AB24: 10.00
B25: Количество детей: | C25: 6
B26: Всего: | C26: кг | D26: =D24*C25/1000 -> 0.690 | E26: =E24*C25/1000 -> 0.240 | F26: =F24*C25/1000 -> 2.090 | G26: =G24*C25/1000 -> 0.198 | H26: =H24*C25/1000 -> 0.004 | I26: =I24*C25/1000 -> 0.018 | J26: =J24*C25/1000 -> 0.090 | K26: =K24*C25/1000 -> 0.049 | L26: =L24*C25/1000 -> 0.011 | M26: =M24*C25/1000 -> 0.064 | N26: =N24*C25/1000 -> 0.013 | O26: =O24*C25/1000 -> 0.455 | P26: =P24*C25/1000 -> 0.060 | Q26: =Q24*C25/1000 -> 0.068 | R26: =R24*C25 -> 6.000 | S26: =S24*C25/1000 -> 1.188 | T26: =T24*C25/1000 -> 0.400 | U26: =U24*C25/1000 -> 0.228 | V26: =V24*C25/1000 -> 0.120 | W26: =W24*C25/1000 -> 0.142 | X26: =X24*C25/1000 -> 0.390 | Y26: =Y24*C25/1000 -> 0.686 | Z26: =Z24*C25/1000 -> 0.108 | AA26: =AA24*C25/1000 -> 0.600 | AB26: =AB24*C25/1000 -> 0.060
B28: Составил _________________

Sheet 10д
Y1: Утверждаю: __________ _____________________ ______________________
U2: 10,5 час
A3: Меню-раскладка на " 29 " марта 2024 г.
B5: Наименование рецептов и блюд | C5: выход гр | D5: Хлеб пшеничный | E5: Крупа манная | F5: Молоко | G5: Сахар | H5: Соль | I5: Масло слив. | J5: Масло раст. | K5: Крупа гречневая | L5: Биточки куриные п/ф | M5: Суповой набор | N5: Морковь | O5: Картофель | P5: Огурцы соленые | Q5: Яйцо | R5: Сметана | S5: Сок фруктовый | T5: Фрукты свежие | U5: Лук | V5: Томатная паста | W5: Печенье | X5: Чай | Y5: Творог | Z5: Сухари панировочные | AA5: Мука | AB5: Сухофрукты | AC5: Рис | AD5: Свекла
B6: 1 Завтрак
B7: Бутерброд с маслом | C7: 40/5 | D7: 40 | I7: 5
B8: Чай с сахаром | C8: 180/10 | G8: 10 | X8: 0.6
B9: Каша манная мол.с маслом | C9: 200/5 | E9: 30.8 | F9: 108 | G9: 5 | H9: 0.3 | I9: 5
B10: II завтрак
B11: Сок фруктовый | C11: 200 | S11: 200
B12: Печенье | C12: 20 | W12: 20
B13: Обед
B14: Винегрет овощной | C14: 60 | H14: 0.15 | J14: 3.6 | N14: 9 | O14: 22.2 | P14: 13.2 | U14: 12 | AD14: 15
B15: Суп картофельный | C15: 200 | H15: 1.2 | J15: 3 | M15: 20 | N15: 10 | O15: 120 | U15: 9.6 | V15: 2
B16: Каша гречневая с соусом | C16: 150/20 | H16: =0.5+0.2 -> 0.7 | I16: =6+0.5 -> 6.5 | K16: 71.4 | R16: 10 | AA16: 0.5
B17: Биточки куриные | C17: 70 | J17: 2 | L17: 1
B18: Хлеб пшеничный | C18: 50 | D18: 50
B19: Компот из сухофруктов | C19: 180 | G19: 9 | AB19: 18
B20: Уплотненный полдник
B21: Запеканка рисовая с творогом с молочным соусом | C21: 100/30 | F21: 22.5 | G21: 10.33 | H21: 1 | I21: 4.53 | Q21: 6.13 | R21: 2 | Y21: 26.67 | Z21: 2.67 | AA21: 1.2 | AC21: 26.67
B22: Чай с сахаром | C22: 180/10 | G22: 10 | X22: 0.6
B23: Свежие фрукты | C23: 100 | T23: 100
B24: Итого: | C24: гр | D24: =SUM(D7:D23) -> 90.00 | E24: =SUM(E7:E23) -> 30.80 | F24: 130.50 | G24: =SUM(G7:G23) -> 44.33 | H24: 3.35 | I24: 21.03 | J24: 8.60 | K24: 71.40 | L24: 1.00 | M24: 20.00 | N24: 19.00 | O24: 142.20 | P24: 13.20 | Q24: 6.13 | R24: 12.00 | S24: 200.00 | T24: 100.00 | U24: 21.60 | V24: 2.00 | W24: 20.00 | X24: 1.20 | Y24: 26.67 | Z24: 2.67 | AA24: 1.70 | AB24: 18.00 | AC24: 26.67 | AD24: 15.00
B25: Количество детей | C25: 6
B26: Всего: | C26: кг | D26: =D24*C25/1000 -> 0.540 | E26: =E24*C25/1000 -> 0.185 | F26: =F24*C25/1000 -> 0.783 | G26: =G24*C25/1000 -> 0.266 | H26: =H24*C25/1000 -> 0.020 | I26: =I24*C25/1000 -> 0.126 | J26: =J24*C25/1000 -> 0.052 | K26: =K24*C25/1000 -> 0.428 | L26: =L24*C25 -> 6.000 | M26: =M24*C25/1000 -> 0.120 | N26: =N24*C25/1000 -> 0.114 | O26: =O24*C25/1000 -> 0.853 | P26: =P24*C25/1000 -> 0.079 | Q26: =Q24*C25/1000 -> 0.037 | R26: =R24*C25/1000 -> 0.072 | S26: =S24*C25/1000 -> 1.200 | T26: =T24*C25/1000 -> 0.600 | U26: =U24*C25/1000 -> 0.130 | V26: =V24*C25/1000 -> 0.012 | W26: =W24*C25/1000 -> 0.120 | X26: =X24*C25/1000 -> 0.007 | Y26: =Y24*C25/1000 -> 0.160 | Z26: =Z24*C25/1000 -> 0.016 | AA26: =AA24*C25/1000 -> 0.010 | AB26: =AB24*C25/1000 -> 0.108 | AC26: =AC24*C25/1000 -> 0.160 | AD26: =AD24*C25/1000 -> 0.090
B28: Составил _________________
